fUSD/lending_fUSD_20260503
["ID","MTS","AMOUNT","RATE_DAILY","PERIOD"]
[421476768,1777740665000,-1090.18754956,0.00032557,2]
[421476772,1777740665000,-1000.0,0.00032585,14]
[421476773,1777740665000,-1108.99789053,0.00032601,15]
[421476770,1777740665000,-1368.9152011,0.00032567,2]
[421476771,1777740665000,-1000.0,0.00032575,14]
[421476786,1777740665000,-500.0,0.00032602,2]
[421476787,1777740665000,-500.0,0.00032602,2]
[421476776,1777740665000,-500.0,0.00032602,2]
[421476778,1777740665000,-552.13234568,0.00032602,2]
[421476777,1777740665000,-500.0,0.00032602,2]
[421476779,1777740665000,-500.0,0.00032602,2]
[421476775,1777740665000,-154.17611476,0.00032602,2]
[421476781,1777740665000,-271.77014435,0.00032602,2]
[421476784,1777740665000,-500.0,0.00032602,2]
[421476782,1777740665000,-500.0,0.00032602,2]
[421476785,1777740665000,-500.0,0.00032602,2]
[421476783,1777740665000,-500.0,0.00032602,2]
[421476780,1777740665000,-500.0,0.00032602,2]
[421476788,1777740665000,-500.0,0.00032602,2]
[421476800,1777740665000,-500.0,0.00032602,2]
[421476799,1777740665000,-500.0,0.00032602,2]
[421476790,1777740665000,-500.0,0.00032602,2]
[421476820,1777740665000,-751.13,0.00032602,2]
[421476763,1777740665000,-506.66,0.00032547,2]
[421476823,1777740665000,-500.0,0.00032602,2]
[421476862,1777740665000,-500.0,0.00032602,2]
[421476861,1777740665000,-610.74395377,0.00032602,2]
[421476857,1777740665000,-667.69,0.00032602,2]
[421476863,1777740665000,-500.0,0.00032602,2]
[421476859,1777740665000,-500.0,0.00032602,2]
[421476860,1777740665000,-500.0,0.00032602,2]
[421476864,1777740665000,-518.49204061,0.00032602,2]
[421476868,1777740665000,-500.0,0.00032602,2]
[421476867,1777740665000,-500.0,0.00032602,2]
[421476878,1777740665000,-500.0,0.00032602,2]
[421476870,1777740665000,-500.0,0.00032602,2]
[421476869,1777740665000,-179.11871394,0.00032602,2]
[421476875,1777740665000,-500.0,0.00032602,2]
[421476873,1777740665000,-500.0,0.00032602,2]
[421476876,1777740665000,-500.0,0.00032602,2]
[421476872,1777740665000,-500.0,0.00032602,2]
[421476871,1777740665000,-517.0,0.00032602,2]
[421476877,1777740665000,-1160.62,0.00032602,2]
[421476874,1777740665000,-531.92,0.00032602,2]
[421476880,1777740665000,-714.19,0.00032602,2]
[421476879,1777740665000,-500.0,0.00032602,2]
[421476883,1777740665000,-1049.35,0.00032602,2]
[421476885,1777740665000,-500.0,0.00032602,2]
[421476881,1777740665000,-500.0,0.00032602,2]
[421476882,1777740665000,-500.0,0.00032602,2]
[421476884,1777740665000,-500.0,0.00032602,2]
[421476886,1777740665000,-563.44,0.00032602,2]
[421476888,1777740665000,-682.27,0.00032602,2]
[421476821,1777740665000,-500.0,0.00032602,2]
[421476858,1777740665000,-500.0,0.00032602,2]
[421476866,1777740665000,-500.0,0.00032602,2]
[421476887,1777740665000,-500.0,0.00032602,2]
[421476855,1777740665000,-638.93,0.00032602,2]
[421476827,1777740665000,-500.0,0.00032602,2]
[421476829,1777740665000,-500.0,0.00032602,2]
[421476830,1777740665000,-500.0,0.00032602,2]
[421476831,1777740665000,-500.0,0.00032602,2]
[421476839,1777740665000,-558.92,0.00032602,2]
[421476838,1777740665000,-500.0,0.00032602,2]
[421476828,1777740665000,-661.95,0.00032602,2]
[421476836,1777740665000,-500.0,0.00032602,2]
[421476856,1777740665000,-500.0,0.00032602,2]
[421476834,1777740665000,-500.0,0.00032602,2]
[421476832,1777740665000,-500.0,0.00032602,2]
[421476833,1777740665000,-500.0,0.00032602,2]
[421476837,1777740665000,-500.0,0.00032602,2]
[421476840,1777740665000,-500.0,0.00032602,2]
[421476835,1777740665000,-500.0,0.00032602,2]
[421476842,1777740665000,-729.45,0.00032602,2]
[421476865,1777740665000,-500.0,0.00032602,2]
[421476844,1777740665000,-500.0,0.00032602,2]
[421476854,1777740665000,-503.61,0.00032602,2]
[421476853,1777740665000,-500.0,0.00032602,2]
[421476841,1777740665000,-608.3,0.00032602,2]
[421476852,1777740665000,-500.0,0.00032602,2]
[421476851,1777740665000,-500.0,0.00032602,2]
[421476846,1777740665000,-554.24,0.00032602,2]
[421476848,1777740665000,-500.0,0.00032602,2]
[421476843,1777740665000,-500.0,0.00032602,2]
[421476845,1777740665000,-778.94,0.00032602,2]
[421476849,1777740665000,-500.0,0.00032602,2]
[421476847,1777740665000,-500.0,0.00032602,2]
[421476850,1777740665000,-1945.3,0.00032602,2]
[421476926,1777740666000,-500.0,0.00032602,2]
[421476933,1777740666000,-500.0,0.00032602,2]
[421476927,1777740666000,-500.0,0.00032602,2]
[421476920,1777740666000,-3131.23,0.00032602,2]
[421476924,1777740666000,-765.21,0.00032602,2]
[421476921,1777740666000,-500.0,0.00032602,2]
[421476928,1777740666000,-500.0,0.00032602,2]
[421476931,1777740666000,-500.0,0.00032602,2]
[421476929,1777740666000,-500.0,0.00032602,2]
[421476930,1777740666000,-567.43356603,0.00032602,2]
[421476922,1777740666000,-517.58,0.00032602,2]
[421476925,1777740666000,-500.0,0.00032602,2]
[421476943,1777740666000,-529.42,0.00032602,2]
[421476948,1777740666000,-500.0,0.00032602,2]
[421476932,1777740666000,-500.0,0.00032602,2]
[421476934,1777740666000,-500.0,0.00032602,2]
[421476940,1777740666000,-500.0,0.00032602,2]
[421476941,1777740666000,-561.34,0.00032602,2]
[421476936,1777740666000,-572.23,0.00032602,2]
[421476938,1777740666000,-500.0,0.00032602,2]
[421476935,1777740666000,-500.0,0.00032602,2]
[421476942,1777740666000,-500.0,0.00032602,2]
[421476944,1777740666000,-500.0,0.00032602,2]
[421476939,1777740666000,-779.5,0.00032602,2]
[421476945,1777740666000,-500.0,0.00032602,2]
[421476946,1777740666000,-500.0,0.00032602,2]
[421476923,1777740666000,-500.0,0.00032602,2]
[421476937,1777740666000,-500.0,0.00032602,2]
[421476919,1777740666000,-500.0,0.00032602,2]
[421476901,1777740666000,-748.06,0.00032602,2]
[421476911,1777740666000,-1058.89,0.00032602,2]
[421476947,1777740666000,-807.32,0.00032602,2]
[421476890,1777740666000,-500.0,0.00032602,2]
[421476891,1777740666000,-500.0,0.00032602,2]
[421476889,1777740666000,-500.0,0.00032602,2]
[421476896,1777740666000,-500.0,0.00032602,2]
[421476892,1777740666000,-606.54,0.00032602,2]
[421476895,1777740666000,-560.36,0.00032602,2]
[421476898,1777740666000,-507.81,0.00032602,2]
[421476893,1777740666000,-500.0,0.00032602,2]
[421476903,1777740666000,-500.0,0.00032602,2]
[421476894,1777740666000,-500.0,0.00032602,2]
[421476897,1777740666000,-706.67,0.00032602,2]
[421476904,1777740666000,-500.0,0.00032602,2]
[421476910,1777740666000,-581.1946073,0.00032602,2]
[421476900,1777740666000,-500.0,0.00032602,2]
[421476902,1777740666000,-500.0,0.00032602,2]
[421476906,1777740666000,-542.32,0.00032602,2]
[421476917,1777740666000,-500.0,0.00032602,2]
[421476905,1777740666000,-565.92,0.00032602,2]
[421476907,1777740666000,-500.0,0.00032602,2]
[421476913,1777740666000,-500.0,0.00032602,2]
[421476916,1777740666000,-500.0,0.00032602,2]
[421476918,1777740666000,-500.0,0.00032602,2]
[421476908,1777740666000,-293.65130134,0.00032602,2]
[421476909,1777740666000,-500.0,0.00032602,2]
[421476915,1777740666000,-618.93,0.00032602,2]
[421476912,1777740666000,-500.0,0.00032602,2]
[421476914,1777740666000,-500.0,0.00032602,2]
[421476899,1777740666000,-500.0,0.00032602,2]
[421476949,1777740666000,-500.0,0.00032602,2]
[421476956,1777740666000,-1060.23,0.00032602,2]
[421476954,1777740666000,-500.0,0.00032602,2]
[421476986,1777740666000,-500.0,0.00032602,2]
[421476984,1777740666000,-500.0,0.00032602,2]
[421476985,1777740666000,-500.0,0.00032602,2]
[421476983,1777740666000,-500.0,0.00032602,2]
[421476991,1777740666000,-1086.79,0.00032602,2]
[421476989,1777740666000,-500.0,0.00032602,2]
[421476988,1777740666000,-500.0,0.00032602,2]
[421476990,1777740666000,-734.68,0.00032602,2]
[421476995,1777740666000,-500.0,0.00032602,2]
[421476993,1777740666000,-508.38,0.00032602,2]
[421476994,1777740666000,-500.0,0.00032602,2]
[421476996,1777740666000,-500.0,0.00032602,2]
[421476997,1777740666000,-842.36,0.00032602,2]
[421477000,1777740666000,-1784.19,0.00032602,2]
[421477002,1777740666000,-549.91,0.00032602,2]
[421477003,1777740666000,-753.25,0.00032602,2]
[421476999,1777740666000,-500.0,0.00032602,2]
[421476998,1777740666000,-542.28025079,0.00032602,2]
[421477001,1777740666000,-521.23314007,0.00032602,2]
[421477004,1777740666000,-500.0,0.00032602,2]
[421477007,1777740666000,-500.0,0.00032602,2]
[421477010,1777740666000,-500.0,0.00032602,2]
[421477008,1777740666000,-500.0,0.00032602,2]
[421477009,1777740666000,-500.0,0.00032602,2]
[421476955,1777740666000,-500.0,0.00032602,2]
[421477011,1777740666000,-500.0,0.00032602,2]
[421477006,1777740666000,-4974.81,0.00032602,2]
[421476987,1777740666000,-624.53956134,0.00032602,2]
[421476981,1777740666000,-1173.7,0.00032602,2]
[421477005,1777740666000,-500.0,0.00032602,2]
[421476980,1777740666000,-500.0,0.00032602,2]
[421476982,1777740666000,-2456.95,0.00032602,2]
[421476953,1777740666000,-1667.09,0.00032602,2]
[421476950,1777740666000,-500.0,0.00032602,2]
[421476951,1777740666000,-500.0,0.00032602,2]
[421476958,1777740666000,-977.68,0.00032602,2]
[421476957,1777740666000,-500.0,0.00032602,2]
[421476964,1777740666000,-500.0,0.00032602,2]
[421476959,1777740666000,-500.0,0.00032602,2]
[421476960,1777740666000,-500.0,0.00032602,2]
[421476961,1777740666000,-500.0,0.00032602,2]
[421476962,1777740666000,-577.58,0.00032602,2]
[421476965,1777740666000,-500.0,0.00032602,2]
[421476963,1777740666000,-500.0,0.00032602,2]
[421476967,1777740666000,-500.0,0.00032602,2]
[421476952,1777740666000,-755.44,0.00032602,2]
[421476969,1777740666000,-860.23,0.00032602,2]
[421476966,1777740666000,-604.96,0.00032602,2]
[421476976,1777740666000,-500.0,0.00032602,2]
[421476977,1777740666000,-500.0,0.00032602,2]
[421476978,1777740666000,-523.46,0.00032602,2]
[421476972,1777740666000,-624.68,0.00032602,2]
[421476975,1777740666000,-292.74642008,0.00032602,2]
[421476970,1777740666000,-500.0,0.00032602,2]
[421476979,1777740666000,-500.0,0.00032602,2]
[421476974,1777740666000,-500.0,0.00032602,2]
[421476992,1777740666000,-501.01,0.00032602,2]
[421476968,1777740666000,-500.0,0.00032602,2]
[421476971,1777740666000,-797.42,0.00032602,2]
[421476973,1777740666000,-500.0,0.00032602,2]
[421477036,1777740667000,-785.63,0.00032602,2]
[421477050,1777740667000,-500.0,0.00032602,2]
[421477040,1777740667000,-500.0,0.00032602,2]
[421477044,1777740667000,-500.0,0.00032602,2]
[421477053,1777740667000,-500.0,0.00032602,2]
[421477048,1777740667000,-500.0,0.00032602,2]
[421477045,1777740667000,-500.0,0.00032602,2]
[421477049,1777740667000,-500.0,0.00032602,2]
[421477063,1777740667000,-500.0,0.00032602,2]
[421477046,1777740667000,-500.0,0.00032602,2]
[421477054,1777740667000,-602.56,0.00032602,2]
[421477060,1777740667000,-568.44,0.00032602,2]
[421477052,1777740667000,-500.0,0.00032602,2]
[421477066,1777740667000,-500.0,0.00032602,2]
[421477056,1777740667000,-517.11,0.00032602,2]
[421477065,1777740667000,-500.0,0.00032602,2]
[421477055,1777740667000,-500.0,0.00032602,2]
[421477061,1777740667000,-2730.79,0.00032602,2]
[421477064,1777740667000,-509.17,0.00032602,2]
[421477058,1777740667000,-1045.22,0.00032602,2]
[421477057,1777740667000,-556.57,0.00032602,2]
[421477062,1777740667000,-4289.29,0.00032602,2]
[421477059,1777740667000,-500.0,0.00032602,2]
[421477037,1777740667000,-500.0,0.00032602,2]
[421477051,1777740667000,-500.0,0.00032602,2]
[421477039,1777740667000,-612.02607895,0.00032602,2]
[421477027,1777740667000,-842.66,0.00032602,2]
[421477041,1777740667000,-742.17,0.00032602,2]
[421477012,1777740667000,-500.0,0.00032602,2]
[421477016,1777740667000,-500.0,0.00032602,2]
[421477015,1777740667000,-500.0,0.00032602,2]
[421477013,1777740667000,-848.48,0.00032602,2]
[421477014,1777740667000,-500.0,0.00032602,2]
[421477018,1777740667000,-500.0,0.00032602,2]
[421477021,1777740667000,-890.68,0.00032602,2]
[421477020,1777740667000,-500.0,0.00032602,2]
[421477017,1777740667000,-500.0,0.00032602,2]
[421477019,1777740667000,-728.25,0.00032602,2]
[421477022,1777740667000,-862.29,0.00032602,2]
[421477024,1777740667000,-527.29031162,0.00032602,2]
[421477026,1777740667000,-500.0,0.00032602,2]
[421477025,1777740667000,-533.87,0.00032602,2]
[421477023,1777740667000,-500.0,0.00032602,2]
[421477029,1777740667000,-500.0,0.00032602,2]
[421477028,1777740667000,-2676.11,0.00032602,2]
[421477030,1777740667000,-264.8384969,0.00032602,2]
[421477032,1777740667000,-500.0,0.00032602,2]
[421477043,1777740667000,-500.0,0.00032602,2]
[421477042,1777740667000,-1058.93,0.00032602,2]
[421477033,1777740667000,-500.0,0.00032602,2]
[421477034,1777740667000,-501.35134871,0.00032602,2]
[421477031,1777740667000,-500.0,0.00032602,2]
[421477035,1777740667000,-242.00339393,0.00032602,2]
[421477038,1777740667000,-500.0,0.00032602,2]
[421477067,1777740667000,-764.49,0.00032602,2]
[421477047,1777740667000,-500.0,0.00032602,2]
[421477079,1777740667000,-500.0,0.00032602,2]
[421477101,1777740667000,-272.42086,0.00032602,33]
[421477100,1777740667000,-568.62,0.00032602,2]
[421477098,1777740667000,-596.49,0.00032602,2]
[421477099,1777740667000,-746.13,0.00032602,2]
[421477103,1777740667000,-25647.26,0.00032602,2]
[421477102,1777740667000,-272.42086,0.00032602,33]
[421477107,1777740667000,-500.0,0.00032602,2]
[421477106,1777740667000,-735.07,0.00032602,2]
[421477117,1777740667000,-500.0,0.00032602,2]
[421477111,1777740667000,-724.98,0.00032602,2]
[421477108,1777740667000,-500.0,0.00032602,2]
[421477109,1777740667000,-500.0,0.00032602,2]
[421477113,1777740667000,-796.01,0.00032602,2]
[421477112,1777740667000,-3472.2,0.00032602,2]
[421477110,1777740667000,-553.67,0.00032602,2]
[421477115,1777740667000,-547.54,0.00032602,2]
[421477114,1777740667000,-500.0,0.00032602,2]
[421477116,1777740667000,-500.0,0.00032602,2]
[421477118,1777740667000,-156.05054813,0.00032602,2]
[421477122,1777740667000,-500.0,0.00032602,2]
[421477123,1777740667000,-500.0,0.00032602,2]
[421477120,1777740667000,-500.0,0.00032602,2]
[421477121,1777740667000,-15155.74,0.00032602,2]
[421477119,1777740667000,-908.85,0.00032602,2]
[421477124,1777740667000,-500.0,0.00032602,2]
[421477095,1777740667000,-257.91863267,0.00032602,2]
[421477105,1777740667000,-500.0,0.00032602,2]
[421477071,1777740667000,-500.0,0.00032602,2]
[421477096,1777740667000,-500.0,0.00032602,2]
[421477070,1777740667000,-500.0,0.00032602,2]
[421477068,1777740667000,-500.0,0.00032602,2]
[421477069,1777740667000,-500.0,0.00032602,2]
[421477073,1777740667000,-500.0,0.00032602,2]
[421477074,1777740667000,-500.0,0.00032602,2]
[421477076,1777740667000,-566.11,0.00032602,2]
[421477078,1777740667000,-1494.83,0.00032602,2]
[421477104,1777740667000,-501.07,0.00032602,2]
[421477077,1777740667000,-692.22,0.00032602,2]
[421477075,1777740667000,-500.0,0.00032602,2]
[421477081,1777740667000,-500.0,0.00032602,2]
[421477080,1777740667000,-500.0,0.00032602,2]
[421477092,1777740667000,-550.63,0.00032602,2]
[421477072,1777740667000,-500.0,0.00032602,2]
[421477085,1777740667000,-500.0,0.00032602,2]
[421477087,1777740667000,-691.06,0.00032602,2]
[421477094,1777740667000,-500.0,0.00032602,2]
[421477097,1777740667000,-500.0,0.00032602,2]
[421477093,1777740667000,-500.0,0.00032602,2]
[421477084,1777740667000,-500.0,0.00032602,2]
[421477088,1777740667000,-9212.5,0.00032602,2]
[421477083,1777740667000,-500.0,0.00032602,2]
[421477089,1777740667000,-752.6,0.00032602,2]
[421477090,1777740667000,-558.21488712,0.00032602,2]
[421477082,1777740667000,-568.25,0.00032602,2]
[421477091,1777740667000,-563.67,0.00032602,2]
[421477086,1777740667000,-517.88,0.00032602,2]
[421477159,1777740668000,-1318.58,0.00032602,2]
[421477162,1777740668000,-500.0,0.00032602,2]
[421477161,1777740668000,-500.0,0.00032602,2]
[421477163,1777740668000,-500.0,0.00032602,2]
[421477164,1777740668000,-500.0,0.00032602,2]
[421477150,1777740668000,-500.0,0.00032602,2]
[421477158,1777740668000,-500.0,0.00032602,2]
[421477155,1777740668000,-500.0,0.00032602,2]
[421477156,1777740668000,-807.96,0.00032602,2]
[421477166,1777740668000,-500.0,0.00032602,2]
[421477157,1777740668000,-1905.16,0.00032602,2]
[421477160,1777740668000,-683.92,0.00032602,2]
[421477179,1777740668000,-500.0,0.00032602,2]
[421477168,1777740668000,-622.82496305,0.00032602,2]
[421477167,1777740668000,-532.12,0.00032602,2]
[421477169,1777740668000,-718.35,0.00032602,2]
[421477170,1777740668000,-634.41,0.00032602,2]
[421477177,1777740668000,-500.0,0.00032602,2]
[421477175,1777740668000,-500.0,0.00032602,2]
[421477176,1777740668000,-500.0,0.00032602,2]
[421477174,1777740668000,-500.0,0.00032602,2]
[421477171,1777740668000,-500.0,0.00032602,2]
[421477172,1777740668000,-500.0,0.00032602,2]
[421477173,1777740668000,-234.29141563,0.00032602,2]
[421477149,1777740668000,-692.94,0.00032602,2]
[421477165,1777740668000,-500.0,0.00032602,2]
[421477151,1777740668000,-500.0,0.00032602,2]
[421477134,1777740668000,-592.28,0.00032602,2]
[421477152,1777740668000,-500.0,0.00032602,2]
[421477178,1777740668000,-500.0,0.00032602,2]
[421477129,1777740668000,-2458.58,0.00032602,2]
[421477126,1777740668000,-553.3,0.00032602,2]
[421477127,1777740668000,-500.0,0.00032602,2]
[421477128,1777740668000,-500.0,0.00032602,2]
[421477125,1777740668000,-500.0,0.00032602,2]
[421477131,1777740668000,-500.0,0.00032602,2]
[421477141,1777740668000,-500.0,0.00032602,2]
[421477130,1777740668000,-728.98,0.00032602,2]
[421477133,1777740668000,-500.0,0.00032602,2]
[421477132,1777740668000,-282.72805091,0.00032602,2]
[421477137,1777740668000,-500.0,0.00032602,2]
[421477138,1777740668000,-500.0,0.00032602,2]
[421477140,1777740668000,-500.0,0.00032602,2]
[421477135,1777740668000,-500.0,0.00032602,2]
[421477139,1777740668000,-500.0,0.00032602,2]
[421477136,1777740668000,-409.75,0.00032602,2]
[421477144,1777740668000,-500.0,0.00032602,2]
[421477142,1777740668000,-500.0,0.00032602,2]
[421477153,1777740668000,-500.0,0.00032602,2]
[421477143,1777740668000,-500.0,0.00032602,2]
[421477145,1777740668000,-818.91,0.00032602,2]
[421477154,1777740668000,-500.0,0.00032602,2]
[421477146,1777740668000,-607.34,0.00032602,2]
[421477147,1777740668000,-500.0,0.00032602,2]
[421477148,1777740668000,-658.29,0.00032602,2]
[421477189,1777740668000,-656.62,0.00032602,2]
[421477190,1777740668000,-500.0,0.00032602,2]
[421477181,1777740668000,-2406.39,0.00032602,2]
[421477217,1777740668000,-500.0,0.00032656,2]
[421477212,1777740668000,-500.0,0.00032656,2]
[421477209,1777740668000,-366.76936238,0.00032644,2]
[421477211,1777740668000,-500.0,0.00032656,2]
[421477215,1777740668000,-500.0,0.00032656,2]
[421477218,1777740668000,-500.0,0.00032656,2]
[421477221,1777740668000,-500.0,0.00032657,2]
[421477220,1777740668000,-34774.2113723,0.00032657,8]
[421477222,1777740668000,-500.0,0.00032657,2]
[421477219,1777740668000,-500.0,0.00032656,2]
[421477225,1777740668000,-500.0,0.00032657,2]
[421477226,1777740668000,-262.40417831,0.00032657,2]
[421477216,1777740668000,-500.0,0.00032656,2]
[421477223,1777740668000,-500.0,0.00032657,2]
[421477230,1777740668000,-500.0,0.00032657,2]
[421477229,1777740668000,-500.0,0.00032657,2]
[421477231,1777740668000,-500.0,0.00032657,2]
[421477232,1777740668000,-500.0,0.00032657,2]
[421477233,1777740668000,-500.0,0.00032657,2]
[421477228,1777740668000,-500.0,0.00032657,2]
[421477234,1777740668000,-500.0,0.00032657,2]
[421477235,1777740668000,-1152.06,0.00032657,2]
[421477238,1777740668000,-533.47,0.00032657,2]
[421477237,1777740668000,-500.0,0.00032657,2]
[421477236,1777740668000,-500.0,0.00032657,2]
[421477183,1777740668000,-500.0,0.00032602,2]
[421477227,1777740668000,-500.0,0.00032657,2]
[421477213,1777740668000,-244.70874171,0.00032656,2]
[421477224,1777740668000,-500.0,0.00032657,2]
[421477210,1777740668000,-1108.99789053,0.00032656,15]
[421477207,1777740668000,-1000.0,0.00032608,14]
[421477182,1777740668000,-922.85,0.00032602,2]
[421477180,1777740668000,-579.77,0.00032602,2]
[421477185,1777740668000,-500.0,0.00032602,2]
[421477187,1777740668000,-719.82,0.00032602,2]
[421477184,1777740668000,-803.51,0.00032602,2]
[421477188,1777740668000,-500.0,0.00032602,2]
[421477186,1777740668000,-500.0,0.00032602,2]
[421477192,1777740668000,-500.0,0.00032602,2]
[421477193,1777740668000,-561.07012772,0.00032602,2]
[421477202,1777740668000,-637.14,0.00032602,2]
[421477204,1777740668000,-506.66,0.00032602,2]
[421477203,1777740668000,-568.51,0.00032602,2]
[421477191,1777740668000,-719.76,0.00032602,2]
[421477208,1777740668000,-1368.9152011,0.00032644,2]
[421477196,1777740668000,-724.38,0.00032602,2]
[421477214,1777740668000,-500.0,0.00032656,2]
[421477205,1777740668000,-500.0,0.00032602,2]
[421477206,1777740668000,-507.0,0.00032606,8]
[421477199,1777740668000,-500.0,0.00032602,2]
[421477201,1777740668000,-2332.95,0.00032602,2]
[421477195,1777740668000,-573.11599809,0.00032602,2]
[421477198,1777740668000,-500.0,0.00032602,2]
[421477200,1777740668000,-1529.27,0.00032602,2]
[421477194,1777740668000,-534.99,0.00032602,2]
[421477197,1777740668000,-500.0,0.00032602,2]
[421477270,1777740669000,-729.45,0.00032657,2]
[421477290,1777740669000,-500.0,0.00032657,2]
[421477289,1777740669000,-500.0,0.00032657,2]
[421477279,1777740669000,-500.0,0.00032657,2]
[421477276,1777740669000,-500.0,0.00032657,2]
[421477269,1777740669000,-608.3,0.00032657,2]
[421477275,1777740669000,-500.0,0.00032657,2]
[421477271,1777740669000,-500.0,0.00032657,2]
[421477273,1777740669000,-778.94,0.00032657,2]
[421477272,1777740669000,-500.0,0.00032657,2]
[421477282,1777740669000,-503.61,0.00032657,2]
[421477274,1777740669000,-554.24,0.00032657,2]
[421477278,1777740669000,-1945.3,0.00032657,2]
[421477304,1777740669000,-714.19,0.00032657,2]
[421477280,1777740669000,-500.0,0.00032657,2]
[421477283,1777740669000,-638.93,0.00032657,2]
[421477288,1777740669000,-500.0,0.00032657,2]
[421477285,1777740669000,-667.69,0.00032657,2]
[421477287,1777740669000,-500.0,0.00032657,2]
[421477286,1777740669000,-500.0,0.00032657,2]
[421477284,1777740669000,-500.0,0.00032657,2]
[421477292,1777740669000,-500.0,0.00032657,2]
[421477302,1777740669000,-500.0,0.00032657,2]
[421477291,1777740669000,-500.0,0.00032657,2]
[421477296,1777740669000,-500.0,0.00032657,2]
[421477295,1777740669000,-500.0,0.00032657,2]
[421477277,1777740669000,-500.0,0.00032657,2]
[421477281,1777740669000,-500.0,0.00032657,2]
[421477267,1777740669000,-558.92,0.00032657,2]
[421477240,1777740669000,-500.0,0.00032657,2]
[421477262,1777740669000,-500.0,0.00032657,2]
[421477299,1777740669000,-500.0,0.00032657,2]
[421477239,1777740669000,-500.0,0.00032657,2]
[421477244,1777740669000,-500.0,0.00032657,2]
[421477242,1777740669000,-595.24,0.00032657,2]
[421477241,1777740669000,-504.21,0.00032657,2]
[421477243,1777740669000,-500.0,0.00032657,2]
[421477245,1777740669000,-500.0,0.00032657,2]
[421477248,1777740669000,-751.13,0.00032657,2]
[421477247,1777740669000,-500.0,0.00032657,2]
[421477249,1777740669000,-338.77832044,0.00032657,2]
[421477246,1777740669000,-653.64,0.00032657,2]
[421477250,1777740669000,-500.0,0.00032657,2]
[421477255,1777740669000,-500.0,0.00032657,2]
[421477253,1777740669000,-500.0,0.00032657,2]
[421477254,1777740669000,-500.0,0.00032657,2]
[421477251,1777740669000,-500.0,0.00032657,2]
[421477252,1777740669000,-500.0,0.00032657,2]
[421477266,1777740669000,-500.0,0.00032657,2]
[421477265,1777740669000,-343.62349771,0.00032657,2]
[421477256,1777740669000,-661.95,0.00032657,2]
[421477264,1777740669000,-500.0,0.00032657,2]
[421477257,1777740669000,-500.0,0.00032657,2]
[421477259,1777740669000,-500.0,0.00032657,2]
[421477263,1777740669000,-500.0,0.00032657,2]
[421477260,1777740669000,-500.0,0.00032657,2]
[421477261,1777740669000,-500.0,0.00032657,2]
[421477258,1777740669000,-500.0,0.00032657,2]
[421477268,1777740669000,-500.0,0.00032657,2]
[421477293,1777740669000,-500.0,0.00032657,2]
[421477354,1777740669000,-572.23,0.00032657,2]
[421477303,1777740669000,-500.0,0.00032657,2]